[Event "24th Hoogeschool Zeeland 2022"]
[Site "Vlissingen"]
[Date "2022.08.06"]
[Round "1.20"]
[White "Bezemer, Arno"]
[Black "Bleeker, Kasper"]
[Result "1/2-1/2"]
[ECO "B51"]
[WhiteElo "2278"]
[BlackElo "1823"]
[Annotator "RC"]
[PlyCount "49"]
[EventDate "2022.08.05"]
[EventType "swiss"]
[EventCountry "NED"]
[SourceTitle "playchess.com"]
[Source "ChessBase"]
[SourceQuality "1"]
[TimeControl "40/5400+30:1800+30"]

1. e4 {[%emt 0:00:07]} c5 {[%emt 0:00:13]} 2. Nf3 {[%emt 0:00:07]} d6 {[%emt 0:00:16]} 3. Bb5+ {[%emt 0:00:17]} Nd7 {[%emt 0:00:39]} 4. Ba4 {[%emt 0:00:18]} a6 {[%emt 0:00:22]} 5. c4 {[%emt 0:01:53]} e6 {[%emt 0:00:47]} 6. O-O {[%emt 0:02:02]} Ngf6 {[%emt 0:00:54]} 7. Nc3 {[%emt 0:00:09]} Be7 {[%emt 0:00:20]} 8. d3 {[%emt 0:00:24]} O-O {[%emt 0:00:21]} 9. a3 {[%emt 0:00:54]} Nb6 {[%emt 0:01:56]} 10. Bc2 {[%emt 0:00:45]} d5 {[%emt 0:00:51]} 11. cxd5 {[%emt 0:03:33]} exd5 {[%emt 0:00:21]} 12. e5 {[%emt 0:00:18]} Ne8 {[%emt 0:02:39]} 13. d4 {[%emt 0:00:24]} Bg4 {[%emt 0:01:41]} 14. dxc5 {[%emt 0:09:14]} Bxc5 {[%emt 0:00:56]} 15. b4 {[%emt 0:09:22]} Be7 {[%emt 0:00:58]} 16. Be3 {[%emt 0:02:29]} Qc7 {[%emt 0:07:16]} 17. Rc1 {[%emt 0:15:45]} Rd8 {[%emt 0:17:23]} 18. Qd4 {[%emt 0:28:51]} Bxf3 {[%emt 0:08:35]} 19. Qxb6 {[%emt 0:04:57]} Qxe5 {[%emt 0:10:19]} 20. gxf3 {[%emt 0:02:14]} d4 {[%emt 0:00:50]} 21. f4 {[%emt 0:01:24]} Qf6 {[%emt 0:01:20]} 22. Qxf6 {[%emt 0:00:11]} Nxf6 {[%emt 0:00:45]} 23. Ne4 {[%emt 0:01:36]} dxe3 {[%emt 0:01:00]} 24. fxe3 {[%emt 0:00:42]} Ng4 {[%emt 0:02:19]} 25. Rfe1 {[%emt 0:03:09]} 1/2-1/2

[Event "24th Hoogeschool Zeeland 2022"]
[Site "Vlissingen"]
[Date "2022.08.06"]
[Round "1.21"]
[White "Molenaar, Toine"]
[Black "Ollenberger, Roland"]
[Result "0-1"]
[ECO "E08"]
[WhiteElo "1823"]
[BlackElo "2264"]
[Annotator "RC"]
[PlyCount "120"]
[EventDate "2022.08.05"]
[EventType "swiss"]
[EventCountry "NED"]
[SourceTitle "playchess.com"]
[Source "ChessBase"]
[SourceQuality "1"]
[TimeControl "40/5400+30:1800+30"]

1. d4 {[%emt 0:00:04]} Nf6 {[%emt 0:02:32]} 2. c4 {[%emt 0:00:51]} e6 {[%emt 0:00:17]} 3. Nf3 {[%emt 0:00:09]} Bb4+ {[%emt 0:09:48]} 4. Bd2 {[%emt 0:00:51]} Be7 {[%emt 0:00:08]} 5. g3 {[%emt 0:01:17]} O-O {[%emt 0:00:16]} 6. Bg2 {[%emt 0:00:28]} d5 {[%emt 0:00:05]} 7. O-O {[%emt 0:01:17]} Ne4 {[%emt 0:03:23]} 8. Bf4 {[%emt 0:05:29]} c6 {[%emt 0:02:12]} 9. Nbd2 {[%emt 0:09:39]} f5 {[%emt 0:04:23]} 10. Qc2 {[%emt 0:16:28]} Nd7 {[%emt 0:00:31]} 11. Ne5 {[%emt 0:03:45]} Bf6 {[%emt 0:09:39]} 12. Ndf3 {[%emt 0:07:42]} g5 {[%emt 0:05:36]} 13. Nxd7 {[%emt 0:03:06]} Bxd7 {[%emt 0:00:31]} 14. Be5 {[%emt 0:02:22]} Be7 {[%emt 0:02:31]} 15. Rad1 {[%emt 0:04:49]} Be8 {[%emt 0:02:53]} 16. Nd2 {[%emt 0:02:19]} Nd6 {[%emt 0:02:02]} 17. cxd5 {[%emt 0:14:24]} cxd5 {[%emt 0:05:49]} 18. Rc1 {[%emt 0:02:05]} Bb5 {[%emt 0:00:33]} 19. Rfe1 {[%emt 0:03:54]} Rc8 {[%emt 0:01:06]} 20. Qb3 {[%emt 0:02:38]} Qd7 {[%emt 0:05:42]} 21. e3 {[%emt 0:04:18]} Ba4 {[%emt 0:05:53]} 22. Qd3 {[%emt 0:01:04]} Nf7 {[%emt 0:00:25]} 23. Bf1 {[%emt 0:03:43]} a6 {[%emt 0:11:57]} 24. Nb3 {[%emt 0:03:59]} Bb5 {[%emt 0:02:56]} 25. Qd2 {[%emt 0:00:21]} Bxf1 {[%emt 0:00:47]} 26. Rxf1 {[%emt 0:00:01]} Rc4 {[%emt 0:01:02]} 27. a3 {[%emt 0:03:31]} Rfc8 {[%emt 0:00:35]} 28. Na5 {[%emt 0:00:30]} Nxe5 {[%emt 0:05:14]} 29. dxe5 {[%emt 0:00:07]} Rxc1 {[%emt 0:03:09]} 30. Rxc1 {[%emt 0:00:01]} Kf7 {[%emt 0:00:48]} 31. Nb3 {[%emt 0:00:20]} Bd8 {[%emt 0:03:03]} 32. Qd1 {[%emt 0:01:42]} g4 {[%emt 0:00:27]} 33. Qd4 {[%emt 0:01:45]} Rxc1+ {[%emt 0:01:26]} 34. Nxc1 {[%emt 0:00:01]} Qc6 {[%emt 0:02:14]} 35. Nd3 {[%emt 0:00:26]} Be7 {[%emt 0:00:30]} 36. Kg2 {[%emt 0:00:21]} Qc4 {[%emt 0:01:38]} 37. h3 {[%emt 0:01:32]} h5 {[%emt 0:00:18]} 38. Nf4 {[%emt 0:00:16]} gxh3+ {[%emt 0:01:52]} 39. Nxh3 {[%emt 0:00:03]} Bc5 {[%emt 0:01:14]} 40. Qd1 {[%emt 0:01:38]} Qe4+ {[%emt 0:01:22]} 41. Kg1 {[%emt 0:02:58]} Qg4 {[%emt 0:00:26]} 42. Qxg4 {[%emt 0:01:17]} hxg4 {[%emt 0:00:41]} 43. Nf4 {[%emt 0:01:03]} d4 {[%emt 0:01:12]} 44. Nd3 {[%emt 0:00:42]} Ba7 {[%emt 0:00:20]} 45. exd4 {[%emt 0:01:46]} Bxd4 {[%emt 0:00:19]} 46. Kg2 {[%emt 0:04:58]} Ke7 {[%emt 0:00:41]} 47. f3 {[%emt 0:00:44]} gxf3+ {[%emt 0:02:15]} 48. Kxf3 {[%emt 0:00:16]} Kd7 {[%emt 0:31:49]} 49. b3 {[%emt 0:01:08]} Kc6 {[%emt 0:00:00]} 50. Nf4 {[%emt 0:03:49]} Bxe5 {[%emt 0:00:00]} 51. Nxe6 {[%emt 0:00:01]} Kd5 {[%emt 0:01:30]} 52. Nd8 {[%emt 0:01:37]} Bc7 {[%emt 0:00:00]} 53. Nf7 {[%emt 0:02:26]} Kd4 {[%emt 0:01:00]} 54. Nh6 {[%emt 0:00:42]} Kc3 {[%emt 0:00:00]} 55. Nxf5 {[%emt 0:00:49]} Kxb3 {[%emt 0:00:00]} 56. Ke4 {[%emt 0:00:31]} Kxa3 {[%emt 0:00:00]} 57. Kd5 {[%emt 0:01:02]} Kb4 {[%emt 0:00:00]} 58. g4 {[%emt 0:02:34]} a5 {[%emt 0:00:00]} 59. g5 {[%emt 0:02:35]} Bd8 {[%emt 0:00:00]} 60. g6 {[%emt 0:01:24]} Bf6 {[%emt 0:00:00]} 0-1

[Event "24th Hoogeschool Zeeland 2022"]
[Site "Vlissingen"]
[Date "2022.08.06"]
[Round "1.22"]
[White "Lammens, Tim"]
[Black "Van de Poel, Taco"]
[Result "1-0"]
[ECO "A05"]
[WhiteElo "2255"]
[BlackElo "1818"]
[Annotator "TA"]
[PlyCount "43"]
[EventDate "2022.08.05"]
[EventType "swiss"]
[EventCountry "NED"]
[SourceTitle "playchess.com"]
[Source "ChessBase"]
[SourceQuality "1"]
[TimeControl "40/5400+30:1800+30"]

{[%evp 9,43,23,52,53,44,41,50,49,68,51,133,118,117,119,163,165,181,185,178,178,189,179,175,187,193,203,187,192,287,291,2738,639,628,625,609,611]} 1. Nf3 {[%emt 0:00:30]} Nf6 {[%emt 0:00:08]} 2. g3 {[%emt 0:00:00]} b5 {[%emt 0:00:29]} 3. Bg2 {[%emt 0:00:00]} Bb7 {[%emt 0:00:01]} 4. b3 {[%emt 0:00:18]} d5 {[%emt 0:01:32]} 5. O-O {[%emt 0:02:00]} Nbd7 {[%emt 0:00:36] [#]} 6. c4 $146 {[%emt 0:00:59] A05: Réti Opening: 1 Nf3 Nf6.} ({Predecessor:} 6. Bb2 c5 7. c4 bxc4 8. bxc4 d4 9. d3 e5 10. Nbd2 Bd6 11. e4 O-O 12. Rb1 {0-1 (43) Szymczak,Z-Vaganian,R (2570) Kirovakan 1978}) 6... bxc4 {[%emt 0:04:56]} 7. bxc4 {[%emt 0:00:02]} e6 {[%emt 0:03:21]} 8. cxd5 {[%emt 0:04:32] White is slightly better.} exd5 {[%emt 0:00:34]} 9. Nc3 {[%emt 0:00:34]} c5 {[%emt 0:09:42]} (9... Be7 $14) 10. Rb1 $16 {[%emt 0:02:27]} Bc6 {[%emt 0:05:14]} 11. d4 {[%emt 0:02:49][%cal Oe2e4]} Rb8 {[%emt 0:04:46]} 12. Bf4 {[%emt 0:07:13]} Rxb1 {[%emt 0:00:20]} 13. Qxb1 {[%emt 0:00:05]} Be7 {[%emt 0:06:42]} 14. Ne5 $1 {[%emt 0:01:58]} Ba8 {[%emt 0:11:53]} 15. Nxd7 {[%emt 0:07:44]} Nxd7 {[%emt 0:07:19]} 16. dxc5 {[%emt 0:03:06]} ({Much less strong is} 16. Bxd5 cxd4 17. Nb5 O-O $16) 16... Bxc5 {[%emt 0:06:05]} 17. Nxd5 {[%emt 0:02:15] Nc7+ is the strong threat.} O-O {[%emt 0:00:12]} 18. Rd1 {[%emt 0:00:51] And now Qb5 would win.} Qa5 {[%emt 0:04:28] [#] Inhibits Qb5.} (18... Nb6 {is a better defense.} 19. Nc7 Qe7) 19. Qf5 $1 $18 {[%emt 0:08:15]} Nb6 $2 {[%emt 0:12:16] [#]} (19... Bxd5 20. Bxd5 (20. Qxd5 Nf6 $16) 20... Nf6) 20. Be4 {[%emt 0:10:21]} (20. Nf6+ $142 $1 {[%mdl 512]} gxf6 21. Qg4+ Kh8 22. Bh6 Qe1+ 23. Rxe1) 20... g6 {[%emt 0:01:12]} 21. Nf6+ {[%emt 0:01:08]} ({Not} 21. Ne7+ Kg7 22. Qe5+ f6 $14) 21... Kh8 {[%emt 0:01:37]} 22. Qe5 {[%emt 0:05:10] Black did not feel at home in the position after the opening.  Weighted Error Value: White=0.23 (precise) /Black=0.22 (precise)} 1-0

[Event "24th Hoogeschool Zeeland 2022"]
[Site "Vlissingen"]
[Date "2022.08.06"]
[Round "1.23"]
[White "Verweij, David"]
[Black "Van Baar, Esper"]
[Result "0-1"]
[ECO "A05"]
[WhiteElo "1842"]
[BlackElo "2281"]
[Annotator "RC"]
[PlyCount "112"]
[EventDate "2022.08.05"]
[EventType "swiss"]
[EventCountry "NED"]
[SourceTitle "playchess.com"]
[Source "ChessBase"]
[SourceQuality "1"]
[TimeControl "40/5400+30:1800+30"]

1. Nf3 {[%emt 0:00:03]} Nf6 {[%emt 0:00:08]} 2. g3 {[%emt 0:00:04]} b5 {[%emt 0:01:53]} 3. Bg2 {[%emt 0:00:24]} Bb7 {[%emt 0:00:08]} 4. d3 {[%emt 0:01:06]} c5 {[%emt 0:04:49]} 5. Nbd2 {[%emt 0:00:34]} e5 {[%emt 0:04:46]} 6. a4 {[%emt 0:07:26]} a6 {[%emt 0:04:22]} 7. c3 {[%emt 0:02:17]} d6 {[%emt 0:08:07]} 8. axb5 {[%emt 0:01:31]} axb5 {[%emt 0:02:33]} 9. Rxa8 {[%emt 0:00:11]} Bxa8 {[%emt 0:00:04]} 10. Qb3 {[%emt 0:00:45]} Bc6 {[%emt 0:02:40]} 11. Ng5 {[%emt 0:08:27]} d5 {[%emt 0:04:05]} 12. c4 {[%emt 0:09:38]} bxc4 {[%emt 0:06:28]} 13. dxc4 {[%emt 0:02:00]} d4 {[%emt 0:14:14]} 14. Bxc6+ {[%emt 0:02:25]} Nxc6 {[%emt 0:00:07]} 15. Qb7 {[%emt 0:03:43]} Qd7 {[%emt 0:01:02]} 16. Qa8+ {[%emt 0:00:40]} Nd8 {[%emt 0:00:38]} 17. Ndf3 {[%emt 0:01:49]} Bd6 {[%emt 0:01:40]} 18. Ne4 {[%emt 0:03:46]} Nxe4 {[%emt 0:01:50]} 19. Qxe4 {[%emt 0:00:10]} f5 {[%emt 0:08:27]} 20. Qd5 {[%emt 0:02:26]} e4 {[%emt 0:06:09]} 21. Nh4 {[%emt 0:01:54]} g6 {[%emt 0:01:06]} 22. Bg5 {[%emt 0:00:47]} Qe6 {[%emt 0:02:43]} 23. Qa8 {[%emt 0:03:10]} O-O {[%emt 0:01:40]} 24. Qa6 {[%emt 0:04:08]} Nf7 {[%emt 0:02:09]} 25. Bd2 {[%emt 0:04:16]} Qc8 {[%emt 0:03:14]} 26. Qa2 {[%emt 0:04:32]} Qa8 {[%emt 0:00:34]} 27. Qxa8 {[%emt 0:00:34]} Rxa8 {[%emt 0:00:04]} 28. O-O {[%emt 0:00:31]} Rb8 {[%emt 0:03:42]} 29. Rb1 {[%emt 0:02:06]} Ne5 {[%emt 0:04:43]} 30. Bf4 {[%emt 0:00:47]} Nxc4 {[%emt 0:02:30]} 31. Rc1 {[%emt 0:00:19]} Bxf4 {[%emt 0:02:01]} 32. gxf4 {[%emt 0:00:06]} Nxb2 {[%emt 0:00:16]} 33. Rxc5 {[%emt 0:00:08]} Rd8 {[%emt 0:01:03]} 34. Rc2 {[%emt 0:01:53]} d3 {[%emt 0:02:10]} 35. exd3 {[%emt 0:04:02]} exd3 {[%emt 0:00:15]} 36. Rxb2 {[%emt 0:02:44]} d2 {[%emt 0:00:10]} 37. Rxd2 {[%emt 0:00:22]} Rxd2 {[%emt 0:00:05]} 38. Kg2 {[%emt 0:00:12]} Rd4 {[%emt 0:02:15]} 39. Kf3 {[%emt 0:00:33]} Rd3+ {[%emt 0:00:24]} 40. Kg2 {[%emt 0:00:53]} Kg7 {[%emt 0:01:05]} 41. Nf3 {[%emt 0:30:20]} Ra3 {[%emt 0:30:56]} 42. Ng5 {[%emt 0:01:36]} h6 {[%emt 0:02:44]} 43. Nf3 {[%emt 0:00:20]} Kf6 {[%emt 0:00:02]} 44. h4 {[%emt 0:00:20]} Ra4 {[%emt 0:00:46]} 45. Kg3 {[%emt 0:00:19]} Re4 {[%emt 0:01:08]} 46. Nd2 {[%emt 0:00:31]} Rd4 {[%emt 0:00:52]} 47. Nf3 {[%emt 0:00:18]} Ra4 {[%emt 0:00:00]} 48. Nd2 {[%emt 0:00:00]} Ke6 {[%emt 0:00:00]} 49. Nf3 {[%emt 0:00:00]} Kd5 {[%emt 0:00:00]} 50. Ne5 {[%emt 0:00:00]} g5 {[%emt 0:00:00]} 51. Ng6 {[%emt 0:00:00]} g4 {[%emt 0:00:00]} 52. f3 {[%emt 0:00:00]} Ra3 {[%emt 0:00:00]} 53. Ne5 {[%emt 0:29:54]} Re3 {[%emt 0:00:00]} 54. h5 {[%emt 0:00:00]} Rxf3+ {[%emt 0:00:00]} 55. Nxf3 {[%emt 0:00:00]} gxf3 {[%emt 0:00:00]} 56. Kxf3 {[%emt 0:00:00]} Kd4 {[%emt 0:00:00]} 0-1

[Event "24th Hoogeschool Zeeland 2022"]
[Site "Vlissingen"]
[Date "2022.08.06"]
[Round "1.24"]
[White "Grutter, Tim"]
[Black "Hahnen, Elke"]
[Result "1-0"]
[ECO "B11"]
[WhiteElo "2246"]
[BlackElo "1811"]
[Annotator "RC"]
[PlyCount "61"]
[EventDate "2022.08.05"]
[EventType "swiss"]
[EventCountry "NED"]
[SourceTitle "playchess.com"]
[Source "ChessBase"]
[SourceQuality "1"]
[TimeControl "40/5400+30:1800+30"]

1. e4 {[%emt 0:00:09]} c6 {[%emt 0:00:13]} 2. Nc3 {[%emt 0:00:04]} d5 {[%emt 0:00:16]} 3. Nf3 {[%emt 0:00:06]} dxe4 {[%emt 0:03:38]} 4. Nxe4 {[%emt 0:00:11]} Bf5 {[%emt 0:02:51]} 5. Ng3 {[%emt 0:00:55]} Bg6 {[%emt 0:02:58]} 6. h4 {[%emt 0:00:27]} h6 {[%emt 0:00:48]} 7. Ne5 {[%emt 1:32:08]} Qd6 {[%emt 0:05:42]} 8. d4 {[%emt 0:00:00]} Nd7 {[%emt 0:04:16]} 9. Nxg6 {[%emt 0:00:00]} Qxg6 {[%emt 0:03:02]} 10. Bd3 {[%emt 0:00:00]} Qf6 {[%emt 0:08:06]} 11. Qg4 {[%emt 0:00:00]} g6 {[%emt 0:08:49]} 12. h5 {[%emt 0:00:00]} g5 {[%emt 0:02:38]} 13. Bd2 {[%emt 0:00:00]} Qd6 {[%emt 0:08:04]} 14. O-O-O {[%emt 0:00:00]} Ngf6 {[%emt 0:02:59]} 15. Qe2 {[%emt 0:00:00]} e6 {[%emt 0:05:14]} 16. Rhf1 {[%emt 0:00:00]} O-O-O {[%emt 0:05:05]} 17. f4 {[%emt 0:00:00]} g4 {[%emt 0:07:05]} 18. c3 {[%emt 0:00:00]} Rg8 {[%emt 0:01:47]} 19. Kb1 {[%emt 0:00:00]} Nc5 {[%emt 0:06:34]} 20. Bc2 {[%emt 0:00:00]} Ncd7 {[%emt 0:00:46]} 21. f5 {[%emt 0:00:00]} e5 {[%emt 0:06:05]} 22. Bb3 {[%emt 0:00:00]} Qe7 {[%emt 0:04:20]} 23. dxe5 {[%emt 0:00:00]} Qxe5 {[%emt 0:01:22]} 24. Bxf7 {[%emt 0:00:00]} Rg7 {[%emt 0:01:13]} 25. Qxe5 {[%emt 0:00:00]} Nxe5 {[%emt 0:00:18]} 26. Be6+ {[%emt 0:00:00]} Ned7 {[%emt 0:01:49]} 27. Bxh6 {[%emt 0:00:00]} Rh7 {[%emt 0:00:16]} 28. Bg5 {[%emt 0:00:00]} Be7 {[%emt 0:02:34]} 29. Bxf6 {[%emt 0:00:00]} Bxf6 {[%emt 0:00:20]} 30. Ne4 {[%emt 0:00:00]} Bh8 {[%emt 0:03:17]} 31. Nc5 {[%emt 0:00:00]} 1-0

[Event "24th Hoogeschool Zeeland 2022"]
[Site "Vlissingen"]
[Date "2022.08.07"]
[Round "2.1"]
[White "Ponomariov, Ruslan"]
[Black "Dougherty, Michael"]
[Result "1-0"]
[ECO "C11"]
[WhiteElo "2642"]
[BlackElo "2073"]
[Annotator "TA"]
[PlyCount "69"]
[EventDate "2022.08.05"]
[EventType "swiss"]
[EventCountry "NED"]
[SourceTitle "playchess.com"]
[Source "ChessBase"]
[SourceQuality "1"]
[TimeControl "40/5400+30:1800+30"]

{[%evp 12,69,0,-1,54,45,53,38,62,39,53,29,79,31,55,44,63,68,56,55,44,23,51,51,24,41,54,45,39,35,68,0,159,64,62,53,70,23,35,24,183,195,177,159,627,600,636,623,693,697,707,702,707,707,767,751,761,754,804,716]} 1. e4 {[%emt 0:00:03]} e6 {[%emt 0:00:26]} 2. d4 {[%emt 0:00:09]} d5 {[%emt 0:00:07]} 3. Nc3 {[%emt 0:00:06][%cal Bb1c3,Bc3e2,Be2f4][%mdl 32]} Nf6 {[%emt 0:00:54]} 4. e5 {[%emt 0:01:07]} Nfd7 {[%emt 0:00:16]} 5. Nce2 {[%emt 0:03:21]} c5 {[%emt 0:03:34]} 6. c3 {[%emt 0:00:05]} Nc6 {[%emt 0:05:32]} 7. Nf3 {[%emt 0:01:21]} b6 {[%emt 0:18:00] C11: French: Classical System: 4 e5 and 4 Bg5 dxe4.} ({Black should try} 7... Be7 $11) 8. Nf4 $14 {[%emt 0:05:01]} Bb7 {[%emt 0:06:29]} 9. a3 {[%emt 0:06:35]} Qe7 {[%emt 0:07:54] White is slightly better.} 10. Bd3 {[%emt 0:02:07] [#]} O-O-O $146 {[%emt 0:05:56]} ({Predecessor:} 10... c4 11. Bc2 O-O-O 12. Be3 f6 13. exf6 gxf6 14. Qe2 Qf7 15. O-O-O Bd6 16. Rhe1 Rhe8 {0-1 (49) Bogdanovich,S (2299)-Kozel,R (2387) Odessa 2008}) 11. O-O {[%emt 0:01:36]} h6 {[%emt 0:04:39]} (11... g5 $11 {remains equal.}) 12. Be3 {[%emt 0:06:54]} (12. b4 $16) 12... g5 {[%emt 0:03:55]} 13. Nh5 {[%emt 0:05:19]} f5 {[%emt 0:04:10]} 14. exf6 $1 {[%emt 0:02:36] White is more active.} Nxf6 {[%emt 0:00:28]} 15. Nxf6 {[%emt 0:00:41]} Qxf6 {[%emt 0:00:08]} 16. b4 {[%emt 0:00:06]} c4 {[%emt 0:05:07]} 17. Bc2 {[%emt 0:01:42][%cal Of3e5]} Bd6 {[%emt 0:03:24] Against Ne5} 18. b5 {[%emt 0:02:53]} Ne7 {[%emt 0:02:42]} 19. Ne5 {[%emt 0:04:53]} Nf5 {[%emt 0:05:22]} (19... Bxe5 20. dxe5 Qxe5 21. Bd4 $16) 20. Re1 {[%emt 0:07:11]} Rhf8 {[%emt 0:04:33]} 21. Bd2 {[%emt 0:06:07]} ({Better is} 21. Ng4 $14 Qf7 22. Bxf5 exf5 23. Ne5 (23. Nxh6 $2 Qg6 $19)) 21... Nh4 $2 {[%emt 0:04:04] [#]} (21... Nxd4 $1 $11 22. Ng4 Qf7 23. cxd4 h5) 22. f3 {[%emt 0:02:21]} (22. Ng4 $1 $16 {[%cal Rg4f6]} Qf7 23. Qe2) 22... h5 {[%emt 0:02:02][%cal Og5g4]} 23. Qe2 {[%emt 0:05:34]} Rg8 {[%emt 0:02:35][%cal Og5g4]} 24. Qf2 {[%emt 0:06:41]} (24. a4 $14) 24... Rdf8 {[%emt 0:00:57]} 25. a4 {[%emt 0:05:44]} Bxe5 $2 {[%emt 0:07:08]} (25... g4 $11 {and Black is okay.} 26. f4 Bc7) 26. Rxe5 $18 {[%emt 0:01:18]} ({Inferior is} 26. dxe5 Qd8 $11) 26... g4 {[%emt 0:00:44][%cal Rh4f3] [#] Hoping for ...Nxf3+!} 27. f4 {[%emt 0:01:47][%cal Bf3f4,Bf4g5,Bg5g6][%mdl 32] aiming for Rae1.} ({Much less strong is} 27. Rxh5 Nxf3+ 28. gxf3 gxf3+ 29. Kf1 (29. Kh1 $2 Rg2 $17) 29... Rg2 $16) 27... Nf3+ $2 {[%emt 0:00:23] A mistake that costs the game.} (27... g3 $16 28. hxg3 Nf5) 28. gxf3 {[%emt 0:00:40] White is clearly winning.} gxf3+ {[%emt 0:00:16]} 29. Rg5 {[%emt 0:00:12]} e5 {[%emt 0:00:19]} 30. dxe5 {[%emt 0:01:18]} Rxg5+ {[%emt 0:00:26]} 31. fxg5 {[%emt 0:00:06]} Qe6 {[%emt 0:00:25]} 32. Kh1 {[%emt 0:02:24]} d4 {[%emt 0:01:14]} 33. cxd4 {[%emt 0:01:22]} c3 {[%emt 0:00:50]} 34. Be3 {[%emt 0:00:33]} Qc4 {[%emt 0:00:53]} 35. g6 {[%emt 0:02:05] Weighted Error Value: White=0.18 (very precise) /Black=0.71} 1-0

[Event "24th Hoogeschool Zeeland 2022"]
[Site "Vlissingen"]
[Date "2022.08.07"]
[Round "2.2"]
[White "Gijsen, William"]
[Black "Van den Doel, Erik"]
[Result "0-1"]
[ECO "C29"]
[WhiteElo "2079"]
[BlackElo "2589"]
[Annotator "TA"]
[PlyCount "62"]
[EventDate "2022.08.05"]
[EventType "swiss"]
[EventCountry "NED"]
[SourceTitle "playchess.com"]
[Source "ChessBase"]
[SourceQuality "1"]
[TimeControl "40/5400+30:1800+30"]

{[%evp 10,62,-3,19,12,0,21,0,21,18,16,27,20,-42,4,0,14,-64,-58,-66,-58,-50,-45,-66,-55,-70,-67,-73,-62,-810,-189,-202,-90,-92,-83,-189,-150,-214,-216,-258,-235,-246,-268,-771,-770,-931,-911,-966,-954,-964,-955,-1161,-1156,-6740,-6571]} 1. e4 {[%emt 0:00:03]} e5 {[%emt 0:00:06]} 2. Nc3 {[%emt 0:00:04]} Nf6 {[%emt 0:00:53]} 3. f4 {[%emt 0:00:05]} d5 {[%emt 0:00:05]} 4. fxe5 {[%emt 0:00:03]} Nxe4 {[%emt 0:00:07]} 5. Qf3 {[%emt 0:00:05]} Nxc3 {[%emt 0:17:02]} 6. bxc3 {[%emt 0:00:16]} c5 $1 {[%emt 0:05:16][%mdl 4] is currently scoring better than 6...Be7. C29: Vienna Game: 2...Nf6 3 f4.} 7. Qg3 {[%emt 0:02:35]} Nc6 {[%emt 0:01:13]} 8. Nf3 {[%emt 0:00:12]} h6 {[%emt 0:13:53] [#] The position is equal.} 9. Bb5 $146 {[%emt 0:06:38]} ({Predecessor:} 9. Be2 Be6 10. O-O Qc7 11. d4 O-O-O 12. a4 g5 13. Be3 c4 14. Bc1 Ne7 15. Ba3 {0-1 (28) Malcanek,J (2107)-Kociscak,J (2470) Czech Republic 2018}) 9... Qb6 {[%emt 0:18:12]} 10. a4 {[%emt 0:00:44]} a6 {[%emt 0:02:26]} 11. Be2 {[%emt 0:10:14]} (11. Bxc6+ $11 Qxc6 12. O-O) 11... c4 {[%emt 0:08:48]} (11... Be6 $15) 12. d4 $11 {[%emt 0:02:20]} cxd3 {[%emt 0:00:04]} 13. Bxd3 {[%emt 0:04:45]} ({Better is} 13. cxd3 $11 d4 14. c4) 13... Be6 $36 {[%emt 0:01:46][%mdl 2048] Black has the initiative.} 14. a5 {[%emt 0:05:26]} Qc5 {[%emt 0:00:56]} 15. Bd2 {[%emt 0:07:50]} g5 {[%emt 0:04:10]} 16. Rb1 {[%emt 0:04:13]} O-O-O {[%emt 0:02:17]} ({But not} 16... Nxa5 17. Nd4) 17. Nd4 {[%emt 0:01:07]} Nxd4 {[%emt 0:01:50]} 18. cxd4 {[%emt 0:00:02]} Qxd4 {[%emt 0:00:07]} 19. Rb3 $2 {[%emt 0:04:13][%mdl 8192]} (19. c3 $15 Qc5 20. Qe3) 19... Bc5 $2 {[%emt 0:04:59]} (19... Qa1+ 20. Ke2 Qxh1) 20. Bc3 {[%emt 0:02:30]} Qe3+ {[%emt 0:04:26]} (20... Qa4 $19 {has better winning chances. aiming for ...d4.} 21. Rb1 Kb8) 21. Qxe3 $17 {[%emt 0:00:11]} Bxe3 {[%emt 0:00:04]} 22. Rb1 {[%emt 0:00:56] [#]} (22. Bd2 $17 Bd4 23. Bc3) 22... Rhe8 $1 $19 {[%emt 0:01:47]} 23. h3 {[%emt 0:03:15] [#]} (23. Rf1 $17 {was necessary.}) 23... d4 $1 {[%emt 0:01:26]} 24. Bb4 {[%emt 0:02:13]} Ba2 {[%emt 0:05:00][%csl LRb1,LRe5]} 25. Rb2 {[%emt 0:00:30]} Bd5 {[%emt 0:00:09]} 26. Bd6 $2 {[%emt 0:00:07] [#]} (26. c4 dxc3 27. Bxc3) 26... Rxd6 $1 {[%emt 0:00:33][%mdl 512] Black is clearly winning.} 27. Bf5+ {[%emt 0:00:13] [#]} (27. exd6 Bc1+) 27... Rd7 $1 {[%emt 0:00:52][%cal Oe8e5]} 28. Bxd7+ {[%emt 0:00:20]} (28. Rf1 Rxe5) 28... Kxd7 {[%emt 0:00:04]} 29. Rf1 {[%emt 0:00:42]} Rxe5 {[%emt 0:00:35]} 30. Kd1 {[%emt 0:00:41] Prevents Bc1.} f5 {[%emt 0:00:19]} 31. Rb6 {[%emt 0:00:07]} Bxg2 {[%emt 0:00:18] Weighted Error Value: White=1.10/Black=0.39} 0-1